[Event "EYCC Open-U16 2019"]
[Site "Bratislava"]
[Date "2019.08.06"]
[Round "5.24"]
[White "Ongut, Tamas Gunes"]
[Black "Kazmin, Semen"]
[Result "1/2-1/2"]
[ECO "A06"]
[WhiteElo "2158"]
[BlackElo "2193"]
[Annotator "NA"]
[PlyCount "66"]
[EventDate "2019.08.02"]
[EventType "swiss"]
[EventCountry "SVK"]
[SourceTitle "playchess.com"]
[Source "ChessBase"]
[SourceQuality "1"]
[TimeControl "40/5400+30:1800+30"]

1. Nf3 {[%emt 0:02:21]} d5 {[%emt 0:01:01]} 2. g3 {[%emt 0:00:08]} Nc6 {[%emt 0:00:05]} 3. d4 {[%emt 0:00:05]} Bf5 {[%emt 0:00:07]} 4. Bg2 {[%emt 0:00:06]} Nb4 {[%emt 0:01:20]} 5. Na3 {[%emt 0:00:07]} e6 {[%emt 0:00:19]} 6. O-O {[%emt 0:01:58]} c5 {[%emt 0:03:46]} 7. c4 {[%emt 0:07:47]} Nf6 {[%emt 0:04:19]} 8. Ne5 {[%emt 0:12:59]} Nc6 {[%emt 0:14:57]} 9. Qa4 {[%emt 0:07:48]} Be7 {[%emt 0:08:46]} 10. cxd5 {[%emt 0:04:04]} exd5 {[%emt 0:00:57]} 11. Nxc6 {[%emt 0:02:33]} Qd7 {[%emt 0:02:29]} 12. Nxe7 {[%emt 0:00:56]} Qxa4 {[%emt 0:00:05]} 13. Nxf5 {[%emt 0:00:05]} O-O {[%emt 0:00:35]} 14. dxc5 {[%emt 0:03:35]} Rfe8 {[%emt 0:09:09]} 15. Nd6 {[%emt 0:06:46]} Rxe2 {[%emt 0:06:46]} 16. Nab5 {[%emt 0:00:41]} Qb4 {[%emt 0:06:19]} 17. Nc3 {[%emt 0:05:53]} Re7 {[%emt 0:04:14]} 18. Bf4 {[%emt 0:23:15]} d4 {[%emt 0:06:30]} 19. Ncb5 {[%emt 0:04:20]} Qxc5 {[%emt 0:08:36]} 20. Rad1 {[%emt 0:04:13]} Nh5 {[%emt 0:03:36]} 21. Rxd4 {[%emt 0:06:41]} Nxf4 {[%emt 0:00:47]} 22. Rxf4 {[%emt 0:00:16]} a6 {[%emt 0:01:30]} 23. Rc4 {[%emt 0:00:58]} Qxc4 {[%emt 0:00:47]} 24. Nxc4 {[%emt 0:00:06]} axb5 {[%emt 0:00:02]} 25. Ne3 {[%emt 0:01:33]} Rxa2 {[%emt 0:00:51]} 26. Nd5 {[%emt 0:00:01]} Re8 {[%emt 0:01:25]} 27. b4 {[%emt 0:00:34]} Rb2 {[%emt 0:00:32]} 28. Rc1 {[%emt 0:00:21]} h6 {[%emt 0:00:59]} 29. Bf3 {[%emt 0:00:19]} Ra8 {[%emt 0:01:34]} 30. Bg2 {[%emt 0:03:28]} g6 {[%emt 0:02:11]} 31. h4 {[%emt 0:00:23]} Kg7 {[%emt 0:00:30]} 32. Bf3 {[%emt 0:00:06]} Raa2 {[%emt 0:00:29]} 33. Rf1 {[%emt 0:00:06]} Ra3 {[%emt 0:01:47]} 1/2-1/2

[Event "EYCC Open-U16 2019"]
[Site "Bratislava"]
[Date "2019.08.06"]
[Round "5.25"]
[White "Olsen, Filip Boe"]
[Black "Fuglestein, Sander"]
[Result "1-0"]
[ECO "E08"]
[WhiteElo "2383"]
[BlackElo "1997"]
[Annotator "NA"]
[PlyCount "91"]
[EventDate "2019.08.02"]
[EventType "swiss"]
[EventCountry "SVK"]
[SourceTitle "playchess.com"]
[Source "ChessBase"]
[SourceQuality "1"]
[TimeControl "40/5400+30:1800+30"]

1. d4 {[%emt 0:00:00]} Nf6 {[%emt 0:00:00]} 2. c4 {[%emt 0:00:00]} e6 {[%emt 0:00:00]} 3. g3 {[%emt 0:00:05]} d5 {[%emt 0:00:43]} 4. Nf3 {[%emt 0:00:08]} Be7 {[%emt 0:00:35]} 5. Bg2 {[%emt 0:00:19]} O-O {[%emt 0:00:07]} 6. Qc2 {[%emt 0:00:27]} Nbd7 {[%emt 0:00:58]} 7. O-O {[%emt 0:00:14]} c6 {[%emt 0:00:36]} 8. b3 {[%emt 0:00:38]} b6 {[%emt 0:00:28]} 9. Rd1 {[%emt 0:00:12]} Bb7 {[%emt 0:02:30]} 10. Nc3 {[%emt 0:01:14]} Qc8 {[%emt 0:01:13]} 11. e4 {[%emt 0:11:57]} dxe4 {[%emt 0:04:47]} 12. Ng5 {[%emt 0:02:34]} h6 {[%emt 0:11:34]} 13. Ngxe4 {[%emt 0:00:15]} Rd8 {[%emt 0:02:10]} 14. Bf4 {[%emt 0:02:27]} Nxe4 {[%emt 0:01:25]} 15. Nxe4 {[%emt 0:03:01]} Nf6 {[%emt 0:03:25]} 16. c5 Nxe4 {[%emt 0:04:16]} 17. Bxe4 {[%emt 0:04:35]} Rd7 {[%emt 0:19:29]} 18. b4 {[%emt 0:05:18]} b5 {[%emt 0:10:06]} 19. a4 {[%emt 0:01:54]} a6 {[%emt 0:01:02]} 20. Qb3 {[%emt 0:04:26]} Qd8 {[%emt 0:03:19]} 21. Be5 {[%emt 0:01:49]} Bf6 {[%emt 0:14:48]} 22. Qf3 {[%emt 0:05:36]} Rc8 {[%emt 0:01:06]} 23. Bc2 {[%emt 0:05:10]} Rd5 {[%emt 0:07:26]} 24. Qe4 {[%emt 0:01:50]} g6 {[%emt 0:02:28]} 25. Bb3 {[%emt 0:01:34]} Rd7 {[%emt 0:00:36]} 26. h4 {[%emt 0:00:42]} h5 {[%emt 0:01:52]} 27. Bd6 {[%emt 0:02:28]} Rxd6 {[%emt 0:02:23]} 28. cxd6 {[%emt 0:00:12]} Qxd6 {[%emt 0:00:03]} 29. axb5 {[%emt 0:00:56]} axb5 {[%emt 0:00:20]} 30. Rd3 {[%emt 0:02:34]} Rc7 {[%emt 0:01:43]} 31. Rc1 {[%emt 0:01:13]} Rd7 {[%emt 0:01:35]} 32. Rc5 {[%emt 0:06:29]} Bxd4 {[%emt 0:01:48]} 33. Kf1 {[%emt 0:01:20]} Kg7 {[%emt 0:00:50]} 34. f4 {[%emt 0:01:01]} Bxc5 {[%emt 0:00:47]} 35. Rxd6 {[%emt 0:00:17]} Bxd6 {[%emt 0:00:01]} 36. Qd4+ {[%emt 0:01:35]} Kf8 {[%emt 0:00:51]} 37. Qf6 {[%emt 0:04:14]} Ke8 {[%emt 0:00:37]} 38. f5 {[%emt 0:00:52]} gxf5 {[%emt 0:00:27]} 39. Qh8+ {[%emt 0:00:21]} Bf8 {[%emt 0:00:30]} 40. Qxh5 {[%emt 0:00:00]} Bxb4 {[%emt 0:00:00]} 41. Bxe6 {[%emt 0:00:48]} Rc7 {[%emt 0:05:03]} 42. Qh8+ {[%emt 0:00:38]} Ke7 {[%emt 0:01:16]} 43. Bxf7 {[%emt 0:00:31]} Rc8 {[%emt 0:04:29]} 44. Qg7 {[%emt 0:01:25]} Bc3 {[%emt 0:00:31]} 45. Qxc3 {[%emt 0:01:17]} Kxf7 {[%emt 0:00:01]} 46. Qc5 {[%emt 0:01:28]} 1-0

[Event "EYCC Open-U16 2019"]
[Site "Bratislava"]
[Date "2019.08.06"]
[Round "5.26"]
[White "Svane, Frederik"]
[Black "Minko, Dmitry"]
[Result "1-0"]
[ECO "C45"]
[WhiteElo "2334"]
[BlackElo "2061"]
[Annotator "NA"]
[PlyCount "77"]
[EventDate "2019.08.02"]
[EventType "swiss"]
[EventCountry "SVK"]
[SourceTitle "playchess.com"]
[Source "ChessBase"]
[SourceQuality "1"]
[TimeControl "40/5400+30:1800+30"]

1. e4 {[%emt 0:00:00]} e5 {[%emt 0:00:00]} 2. Nf3 {[%emt 0:00:00]} Nc6 {[%emt 0:00:00]} 3. d4 {[%emt 0:00:01]} exd4 {[%emt 0:00:17]} 4. Nxd4 {[%emt 0:00:07]} Bc5 {[%emt 0:00:24]} 5. Nb3 {[%emt 0:00:07]} Bb6 {[%emt 0:00:39]} 6. Nc3 {[%emt 0:00:07]} Nf6 {[%emt 0:00:06]} 7. Qe2 {[%emt 0:00:07]} O-O {[%emt 0:00:39]} 8. Be3 {[%emt 0:00:23]} Re8 {[%emt 0:00:06]} 9. f3 {[%emt 0:00:06]} d5 {[%emt 0:00:14]} 10. O-O-O {[%emt 0:00:08]} d4 {[%emt 0:00:06]} 11. Kb1 {[%emt 0:00:05]} Be6 {[%emt 0:15:02]} 12. Na4 {[%emt 0:00:52]} Bxb3 {[%emt 0:01:04]} 13. cxb3 {[%emt 0:00:08]} Qd6 {[%emt 0:06:29]} 14. Bf2 {[%emt 0:05:02]} Rad8 {[%emt 0:07:19]} 15. Nxb6 {[%emt 0:00:53]} axb6 {[%emt 0:12:45]} 16. Qd2 {[%emt 0:02:13]} Nh5 {[%emt 0:15:48]} 17. Bb5 {[%emt 0:22:20]} d3 {[%emt 0:11:07]} 18. g4 {[%emt 0:16:45]} Nf6 {[%emt 0:05:41]} 19. Bg3 {[%emt 0:16:30]} Qc5 {[%emt 0:04:34]} 20. Bxd3 {[%emt 0:01:48]} Rd7 {[%emt 0:13:00]} 21. Qc3 {[%emt 0:05:12]} Nd4 {[%emt 0:00:34]} 22. e5 {[%emt 0:05:27]} Nd5 {[%emt 0:01:37]} 23. Qxd4 {[%emt 0:00:37]} Qxd4 {[%emt 0:00:05]} 24. Bxh7+ {[%emt 0:00:07]} Kxh7 {[%emt 0:00:08]} 25. Rxd4 {[%emt 0:00:04]} c5 {[%emt 0:00:50]} 26. Rd3 {[%emt 0:02:55]} Red8 {[%emt 0:01:02]} 27. Kc1 {[%emt 0:00:05]} Nb4 {[%emt 0:01:14]} 28. Rxd7 {[%emt 0:00:05]} Rxd7 {[%emt 0:00:05]} 29. a3 {[%emt 0:00:04]} Nc6 {[%emt 0:00:09]} 30. Rd1 {[%emt 0:06:01]} Nd4 {[%emt 0:01:33]} 31. Rd3 {[%emt 0:02:08]} Re7 {[%emt 0:00:54]} 32. Kd2 {[%emt 0:02:22]} Kg6 {[%emt 0:00:45]} 33. f4 {[%emt 0:04:55]} f5 {[%emt 0:00:37]} 34. h3 {[%emt 0:01:45]} Kf7 {[%emt 0:01:21]} 35. Bf2 {[%emt 0:00:34]} Ne6 {[%emt 0:00:18]} 36. gxf5 {[%emt 0:02:24]} Nxf4 {[%emt 0:00:01]} 37. e6+ {[%emt 0:00:07]} Ke8 {[%emt 0:01:14]} 38. Rd6 {[%emt 0:00:04]} g6 {[%emt 0:00:09]} 39. Bh4 {[%emt 0:00:23]} 1-0

[Event "EYCC Open-U16 2019"]
[Site "Bratislava"]
[Date "2019.08.06"]
[Round "5.27"]
[White "Placer, Sebastian"]
[Black "Sorensen, Hampus"]
[Result "0-1"]
[ECO "D45"]
[WhiteElo "2040"]
[BlackElo "2352"]
[Annotator "NA"]
[PlyCount "94"]
[EventDate "2019.08.02"]
[EventType "swiss"]
[EventCountry "SVK"]
[SourceTitle "playchess.com"]
[Source "ChessBase"]
[SourceQuality "1"]
[TimeControl "40/5400+30:1800+30"]

1. d4 {[%emt 0:00:00]} d5 {[%emt 0:00:00]} 2. c4 c6 {[%emt 0:00:04]} 3. Nc3 {[%emt 0:00:43]} Nf6 {[%emt 0:00:22]} 4. Nf3 {[%emt 0:00:36]} e6 {[%emt 0:00:11]} 5. e3 {[%emt 0:00:44]} a6 {[%emt 0:00:50]} 6. c5 {[%emt 0:02:17]} Nbd7 {[%emt 0:15:13]} 7. Qc2 {[%emt 0:01:19]} g6 {[%emt 0:01:48]} 8. Be2 {[%emt 0:00:41]} Bg7 {[%emt 0:00:24]} 9. O-O {[%emt 0:02:10]} O-O {[%emt 0:00:09]} 10. Bd2 {[%emt 0:04:14]} Qc7 {[%emt 0:06:10]} 11. Rfc1 {[%emt 0:03:39]} e5 {[%emt 0:03:07]} 12. b4 {[%emt 0:07:38]} e4 {[%emt 0:03:26]} 13. Ne1 {[%emt 0:00:06]} h5 {[%emt 0:02:38]} 14. f3 {[%emt 0:11:09]} exf3 {[%emt 0:00:51]} 15. Nxf3 {[%emt 0:00:12]} Re8 {[%emt 0:03:01]} 16. Bd3 {[%emt 0:06:30]} Ng4 {[%emt 0:03:08]} 17. Re1 {[%emt 0:02:20]} f5 {[%emt 0:01:58]} 18. h3 {[%emt 0:09:15]} Nh6 {[%emt 0:01:57]} 19. Ne2 {[%emt 0:05:49]} Nf7 {[%emt 0:10:42]} 20. Nf4 {[%emt 0:07:07]} Nf8 {[%emt 0:00:12]} 21. a4 {[%emt 0:04:55]} Bf6 {[%emt 0:17:31]} 22. b5 {[%emt 0:05:06]} h4 {[%emt 0:01:04]} 23. bxa6 {[%emt 0:05:12]} bxa6 {[%emt 0:00:12]} 24. a5 {[%emt 0:02:30]} Bd8 {[%emt 0:01:13]} 25. Ne2 {[%emt 0:08:07]} Nh7 {[%emt 0:02:31]} 26. Rab1 {[%emt 0:01:25]} Nhg5 {[%emt 0:00:30]} 27. Nxg5 {[%emt 0:01:32]} Nxg5 {[%emt 0:00:25]} 28. Nf4 {[%emt 0:00:43]} Kh7 {[%emt 0:02:46]} 29. Rf1 {[%emt 0:01:33]} Ne4 {[%emt 0:00:23]} 30. Bxe4 {[%emt 0:01:54]} Rxe4 {[%emt 0:00:56]} 31. Qd1 {[%emt 0:01:03]} Ra7 {[%emt 0:03:38]} 32. Qf3 {[%emt 0:01:34]} Qg7 {[%emt 0:06:35]} 33. Rb8 {[%emt 0:02:27]} Rc7 {[%emt 0:00:07]} 34. Rb6 {[%emt 0:00:41]} Kg8 {[%emt 0:01:57]} 35. Nd3 {[%emt 0:00:30]} Bf6 {[%emt 0:01:51]} 36. Nb4 {[%emt 0:00:37]} Bb7 {[%emt 0:06:41]} 37. Nxa6 {[%emt 0:00:35]} Rf7 {[%emt 0:00:01]} 38. Nb4 {[%emt 0:01:18]} f4 {[%emt 0:00:09]} 39. exf4 {[%emt 0:00:36]} Bxd4+ {[%emt 0:00:17]} 40. Kh1 {[%emt 0:00:00]} Bxc5 {[%emt 0:00:00]} 41. Rxb7 {[%emt 0:06:08]} Rxb7 {[%emt 0:00:59]} 42. Nxc6 {[%emt 0:00:04]} Rc7 {[%emt 0:02:13]} 43. Bc3 {[%emt 0:03:11]} Qd7 {[%emt 0:02:05]} 44. Ne5 {[%emt 0:00:43]} Qf5 {[%emt 0:00:29]} 45. Ng4 {[%emt 0:04:27]} Kf8 {[%emt 0:01:19]} 46. Nf6 {[%emt 0:04:46]} Re3 {[%emt 0:01:56]} 47. Qxd5 {[%emt 0:00:07]} Rxh3+ {[%emt 0:00:34]} 0-1

[Event "EYCC Open-U16 2019"]
[Site "Bratislava"]
[Date "2019.08.06"]
[Round "5.28"]
[White "Nagy, Ladislav"]
[Black "Degraeve, Remy"]
[Result "0-1"]
[ECO "B23"]
[WhiteElo "2061"]
[BlackElo "2349"]
[Annotator "NA"]
[PlyCount "74"]
[EventDate "2019.08.02"]
[EventType "swiss"]
[EventCountry "SVK"]
[SourceTitle "playchess.com"]
[Source "ChessBase"]
[SourceQuality "1"]
[TimeControl "40/5400+30:1800+30"]

1. e4 {[%emt 0:00:00]} c5 {[%emt 0:00:00]} 2. Nc3 {[%emt 0:00:55]} g6 {[%emt 0:00:39]} 3. g3 {[%emt 0:00:38]} Bg7 {[%emt 0:00:13]} 4. Bg2 {[%emt 0:00:27]} Nc6 {[%emt 0:00:08]} 5. d3 {[%emt 0:00:39]} e6 {[%emt 0:01:36]} 6. f4 {[%emt 0:01:15]} Nge7 {[%emt 0:01:35]} 7. Nf3 {[%emt 0:01:26]} O-O {[%emt 0:01:34]} 8. O-O {[%emt 0:01:39]} d6 {[%emt 0:07:11]} 9. Be3 {[%emt 0:01:40]} Nd4 {[%emt 0:03:26]} 10. e5 {[%emt 0:02:21]} Nef5 {[%emt 0:01:54]} 11. Bf2 {[%emt 0:01:04]} Nxf3+ {[%emt 0:03:36]} 12. Qxf3 {[%emt 0:01:18]} Nd4 {[%emt 0:01:58]} 13. Qd1 {[%emt 0:01:16]} dxe5 {[%emt 0:29:10]} 14. fxe5 {[%emt 0:01:40]} Rb8 {[%emt 0:01:51]} 15. Ne4 {[%emt 0:10:15]} b6 {[%emt 0:01:06]} 16. c3 {[%emt 0:02:03]} Nf5 {[%emt 0:00:36]} 17. g4 {[%emt 0:08:08]} Nh4 {[%emt 0:03:05]} 18. Bxh4 {[%emt 0:06:42]} Qxh4 {[%emt 0:00:09]} 19. Nf6+ {[%emt 0:08:36]} Bxf6 {[%emt 0:00:05]} 20. Rxf6 {[%emt 0:01:54]} Bb7 {[%emt 0:01:16]} 21. Bxb7 {[%emt 0:06:21]} Rxb7 {[%emt 0:00:03]} 22. Qf3 {[%emt 0:01:30]} Rd7 {[%emt 0:00:04]} 23. Rf1 {[%emt 0:01:30]} Qg5 {[%emt 0:01:32]} 24. Qg3 {[%emt 0:11:27]} Rd5 {[%emt 0:04:25]} 25. Re1 {[%emt 0:02:33]} Qd2 {[%emt 0:00:55]} 26. Rf3 {[%emt 0:02:13]} Qxb2 {[%emt 0:03:57]} 27. Qh4 {[%emt 0:03:12]} Qxc3 {[%emt 0:00:11]} 28. Rh3 {[%emt 0:01:26]} h5 {[%emt 0:01:58]} 29. gxh5 {[%emt 0:01:38]} Rxd3 {[%emt 0:03:31]} 30. Rxd3 {[%emt 0:05:54]} Qxd3 {[%emt 0:00:02]} 31. Re4 {[%emt 0:01:26]} Qd1+ {[%emt 0:00:24]} 32. Kf2 {[%emt 0:00:55]} Rd8 {[%emt 0:03:04]} 33. hxg6 {[%emt 0:01:15]} Rd2+ {[%emt 0:00:06]} 34. Kg3 {[%emt 0:00:43]} Rd3+ {[%emt 0:00:08]} 35. Kf4 {[%emt 0:01:09]} Qf3+ {[%emt 0:00:05]} 36. Kg5 {[%emt 0:00:11]} Qf5+ {[%emt 0:00:05]} 37. Kh6 {[%emt 0:00:04]} Qxg6# {[%emt 0:00:04]} 0-1

[Event "EYCC Open-U16 2019"]
[Site "Bratislava"]
[Date "2019.08.06"]
[Round "5.29"]
[White "Torngren, Gustav"]
[Black "Alonso Garcia, Aaron"]
[Result "0-1"]
[ECO "A37"]
[WhiteElo "2109"]
[BlackElo "2248"]
[Annotator "NA"]
[PlyCount "98"]
[EventDate "2019.08.02"]
[EventType "swiss"]
[EventCountry "SVK"]
[SourceTitle "playchess.com"]
[Source "ChessBase"]
[SourceQuality "1"]
[TimeControl "40/5400+30:1800+30"]

1. c4 {[%emt 0:00:00]} c5 {[%emt 0:00:04]} 2. g3 {[%emt 0:00:00]} Nc6 {[%emt 0:00:22]} 3. Bg2 {[%emt 0:00:00]} g6 {[%emt 0:00:29]} 4. Nc3 {[%emt 0:00:39]} Bg7 {[%emt 0:00:05]} 5. Nf3 {[%emt 0:01:32]} e5 {[%emt 0:00:47]} 6. O-O {[%emt 0:00:24]} Nge7 {[%emt 0:00:03]} 7. Ne1 {[%emt 0:00:31]} d6 {[%emt 0:00:38]} 8. Nc2 {[%emt 0:00:12]} Be6 {[%emt 0:00:17]} 9. Ne3 {[%emt 0:00:26]} O-O {[%emt 0:00:06]} 10. Ned5 {[%emt 0:00:35]} Qd7 {[%emt 0:05:05]} 11. a3 {[%emt 0:03:20]} Bh3 {[%emt 0:05:44]} 12. b4 {[%emt 0:06:01]} Bxg2 {[%emt 0:02:27]} 13. Kxg2 {[%emt 0:00:30]} f5 {[%emt 0:01:41]} 14. b5 {[%emt 0:00:38]} Nxd5 {[%emt 0:06:15]} 15. Nxd5 {[%emt 0:04:48]} Nd4 {[%emt 0:12:31]} 16. Bb2 {[%emt 0:13:54]} Ne6 {[%emt 0:00:12]} 17. f4 {[%emt 0:03:25]} Rae8 {[%emt 0:02:04]} 18. e3 {[%emt 0:06:01]} Rf7 {[%emt 0:13:06]} 19. Qc2 {[%emt 0:03:42]} Nc7 {[%emt 0:04:41]} 20. Nxc7 {[%emt 0:06:03]} Qxc7 {[%emt 0:00:01]} 21. Qd3 {[%emt 0:00:51]} e4 {[%emt 0:04:06]} 22. Qc2 {[%emt 0:00:20]} d5 {[%emt 0:03:46]} 23. Bxg7 {[%emt 0:02:26]} Rxg7 {[%emt 0:00:33]} 24. cxd5 {[%emt 0:12:35]} Qd6 {[%emt 0:01:04]} 25. Rac1 {[%emt 0:01:14]} b6 {[%emt 0:00:58]} 26. Qc4 {[%emt 0:07:49]} Rd7 {[%emt 0:00:22]} 27. Kf2 {[%emt 0:06:18]} Qxd5 {[%emt 0:00:30]} 28. Ke2 {[%emt 0:00:30]} Red8 {[%emt 0:06:19]} 29. Qxd5+ {[%emt 0:02:03]} Rxd5 {[%emt 0:00:01]} 30. Rc2 {[%emt 0:00:01]} Rd3 {[%emt 0:02:48]} 31. Ra1 {[%emt 0:00:11]} Rb3 {[%emt 0:00:04]} 32. a4 {[%emt 0:00:10]} Kf7 {[%emt 0:00:50]} 33. Rac1 {[%emt 0:05:37]} Ke6 {[%emt 0:04:46]} 34. Rc3 {[%emt 0:00:46]} Rb4 {[%emt 0:03:23]} 35. Rc4 {[%emt 0:00:49]} Rxc4 {[%emt 0:00:25]} 36. Rxc4 {[%emt 0:00:02]} Kd5 {[%emt 0:00:01]} 37. Rc1 {[%emt 0:04:14]} c4 {[%emt 0:00:04]} 38. Kd1 {[%emt 0:00:23]} Kc5 {[%emt 0:00:11]} 39. Kc2 {[%emt 0:00:19]} Rd3 {[%emt 0:01:16]} 40. Ra1 {[%emt 0:00:00]} Kb4 {[%emt 0:00:00]} 41. h3 {[%emt 0:05:52]} Ra3 {[%emt 0:04:50]} 42. Rb1+ {[%emt 0:00:04]} Kc5 {[%emt 0:00:18]} 43. g4 {[%emt 0:00:41]} Rxa4 {[%emt 0:00:48]} 44. Rg1 {[%emt 0:02:22]} Ra2+ {[%emt 0:00:10]} 45. Kc3 {[%emt 0:00:08]} a6 {[%emt 0:00:12]} 46. Rb1 {[%emt 0:01:55]} axb5 {[%emt 0:00:06]} 47. Rxb5+ {[%emt 0:00:08]} Kxb5 {[%emt 0:00:04]} 48. Kd4 {[%emt 0:00:06]} Rxd2+ {[%emt 0:00:05]} 49. Ke5 {[%emt 0:00:06]} c3 {[%emt 0:00:03] Kd4} 0-1

[Event "EYCC Open-U16 2019"]
[Site "Bratislava"]
[Date "2019.08.06"]
[Round "5.30"]
[White "Lomandong, Marc-Antoine"]
[Black "Turcan, Richard"]
[Result "1-0"]
[ECO "D00"]
[WhiteElo "2073"]
[BlackElo "2232"]
[Annotator "NA"]
[PlyCount "79"]
[EventDate "2019.08.02"]
[EventType "swiss"]
[EventCountry "SVK"]
[SourceTitle "playchess.com"]
[Source "ChessBase"]
[SourceQuality "1"]
[TimeControl "40/5400+30:1800+30"]

1. d4 {[%emt 0:00:00]} d5 {[%emt 0:00:01]} 2. Bf4 {[%emt 0:00:00]} Nf6 {[%emt 0:00:31]} 3. e3 {[%emt 0:00:33]} c5 {[%emt 0:00:41]} 4. c3 {[%emt 0:05:39]} Nc6 5. Nd2 {[%emt 0:00:27]} e6 {[%emt 0:05:56]} 6. Bd3 {[%emt 0:01:51]} Bd6 {[%emt 0:07:42]} 7. Bg3 {[%emt 0:04:14]} O-O {[%emt 0:07:49]} 8. Ngf3 {[%emt 0:00:05]} b6 {[%emt 0:05:51]} 9. Ne5 {[%emt 0:01:32]} Qc7 {[%emt 0:06:08]} 10. f4 {[%emt 0:02:33]} a5 {[%emt 0:07:58]} 11. Bh4 {[%emt 0:15:09]} Be7 {[%emt 0:14:25]} 12. Qf3 {[%emt 0:09:51]} Ba6 {[%emt 0:04:53]} 13. Bc2 {[%emt 0:15:09]} cxd4 {[%emt 0:04:22]} 14. Nxc6 {[%emt 0:00:15]} Qxc6 {[%emt 0:00:11]} 15. exd4 {[%emt 0:00:04]} Rfc8 {[%emt 0:03:15]} 16. g4 {[%emt 0:09:27]} Qc7 {[%emt 0:07:08]} 17. Bg3 {[%emt 0:06:47]} Bd6 {[%emt 0:00:58]} 18. h4 {[%emt 0:00:10]} b5 {[%emt 0:03:50]} 19. g5 {[%emt 0:10:50]} Nd7 {[%emt 0:07:40]} 20. g6 {[%emt 0:01:38]} b4 {[%emt 0:02:48]} 21. gxf7+ {[%emt 0:04:52]} Kf8 {[%emt 0:00:26]} 22. c4 {[%emt 0:03:03]} b3 {[%emt 0:03:40]} 23. axb3 {[%emt 0:05:05]} dxc4 {[%emt 0:00:05]} 24. bxc4 {[%emt 0:02:03]} Bb4 {[%emt 0:01:15]} 25. b3 {[%emt 0:00:10]} Nf6 {[%emt 0:02:34]} 26. f5 {[%emt 0:00:56]} Qe7 {[%emt 0:01:03]} 27. c5 {[%emt 0:00:30]} Bb7 {[%emt 0:01:06]} 28. Qe2 {[%emt 0:00:12]} Bxd2+ {[%emt 0:00:27]} 29. Kxd2 {[%emt 0:00:13]} Qxf7 {[%emt 0:00:56]} 30. fxe6 {[%emt 0:00:24]} Qe8 {[%emt 0:00:37]} 31. Bd6+ {[%emt 0:00:27]} Kg8 {[%emt 0:00:02]} 32. Rhg1 {[%emt 0:00:10]} Bd5 {[%emt 0:00:35]} 33. Rxg7+ {[%emt 0:01:34]} Kxg7 {[%emt 0:00:27]} 34. Rg1+ {[%emt 0:00:06]} Kh8 {[%emt 0:00:12]} 35. Bf5 {[%emt 0:00:56]} Rd8 {[%emt 0:01:13]} 36. Qe5 {[%emt 0:00:16]} Qf8 {[%emt 0:00:37]} 37. Bxf8 {[%emt 0:00:21]} Rxf8 {[%emt 0:00:04]} 38. e7 {[%emt 0:00:42]} Rf7 {[%emt 0:00:03]} 39. Bd7 {[%emt 0:00:14]} Rg8 {[%emt 0:01:04]} 40. e8=Q {[%emt 0:00:00]} 1-0

[Event "EYCC Open-U16 2019"]
[Site "Bratislava"]
[Date "2019.08.06"]
[Round "5.31"]
[White "Bettalli, Francesco"]
[Black "Barak, David"]
[Result "0-1"]
[ECO "D58"]
[WhiteElo "2095"]
[BlackElo "2015"]
[Annotator "NA"]
[PlyCount "132"]
[EventDate "2019.08.02"]
[EventType "swiss"]
[EventCountry "SVK"]
[SourceTitle "playchess.com"]
[Source "ChessBase"]
[SourceQuality "1"]
[TimeControl "40/5400+30:1800+30"]

1. d4 {[%emt 0:00:18]} Nf6 {[%emt 0:00:00]} 2. c4 {[%emt 0:00:05]} e6 {[%emt 0:00:00]} 3. Nc3 {[%emt 0:00:03]} d5 {[%emt 0:00:00]} 4. Bg5 {[%emt 0:00:13]} Be7 {[%emt 0:00:00]} 5. Nf3 {[%emt 0:00:05]} h6 {[%emt 0:00:00]} 6. Bh4 {[%emt 0:00:04]} O-O {[%emt 0:00:02]} 7. e3 {[%emt 0:00:02]} b6 {[%emt 0:00:08]} 8. Bd3 {[%emt 0:01:31]} Bb7 {[%emt 0:00:51]} 9. cxd5 {[%emt 0:00:51]} Nxd5 {[%emt 0:02:16]} 10. Bxe7 {[%emt 0:02:22]} Qxe7 {[%emt 0:01:03]} 11. Rc1 {[%emt 0:00:12]} c5 {[%emt 0:15:18]} 12. Nxd5 {[%emt 0:01:47]} exd5 {[%emt 0:00:27]} 13. dxc5 {[%emt 0:02:14]} bxc5 {[%emt 0:00:19]} 14. O-O {[%emt 0:00:06]} Nd7 {[%emt 0:05:38]} 15. Qa4 {[%emt 0:02:58]} Nb6 {[%emt 0:07:31]} 16. Qf4 {[%emt 0:02:04]} Rac8 {[%emt 0:14:15]} 17. h4 {[%emt 0:08:25]} Rc6 {[%emt 0:06:42]} 18. Qf5 {[%emt 0:02:22]} g6 {[%emt 0:02:20]} 19. Qf4 {[%emt 0:00:37]} Kg7 {[%emt 0:05:20]} 20. Qg3 {[%emt 0:04:32]} Nd7 {[%emt 0:10:00]} 21. Bb5 {[%emt 0:05:41]} Rcc8 {[%emt 0:05:59]} 22. h5 {[%emt 0:02:00]} Rfd8 {[%emt 0:13:46]} 23. hxg6 {[%emt 0:05:08]} fxg6 {[%emt 0:00:12]} 24. Nh4 {[%emt 0:00:41]} Qg5 {[%emt 0:06:22]} 25. Qh3 {[%emt 0:02:24]} Nf8 {[%emt 0:01:51]} 26. f4 {[%emt 0:00:21]} Qf6 {[%emt 0:00:29]} 27. Bd3 {[%emt 0:00:48]} Rc7 {[%emt 0:01:33]} 28. Qg3 {[%emt 0:00:37]} Rc6 {[%emt 0:01:02]} 29. b3 {[%emt 0:03:14]} Bc8 {[%emt 0:00:21]} 30. f5 {[%emt 0:03:37]} g5 {[%emt 0:00:23]} 31. Ng6 {[%emt 0:00:01]} a6 {[%emt 0:00:43]} 32. Ne5 {[%emt 0:01:40]} Nd7 {[%emt 0:00:27]} 33. Ng4 {[%emt 0:01:22]} Qf8 {[%emt 0:00:36]} 34. Qh2 {[%emt 0:01:19]} Rf6 {[%emt 0:00:28]} 35. Nxf6 {[%emt 0:00:39]} Qxf6 {[%emt 0:00:06]} 36. Qc7 {[%emt 0:01:41]} Kh8 {[%emt 0:00:46]} 37. Kh1 {[%emt 0:04:27]} Re8 {[%emt 0:00:30]} 38. Bb1 {[%emt 0:01:28]} Kg8 {[%emt 0:00:43]} 39. Rcd1 {[%emt 0:00:51]} Qe5 {[%emt 0:00:26]} 40. Qc6 {[%emt 0:00:00]} Nf6 {[%emt 0:00:00]} 41. Rxd5 {[%emt 0:03:59]} Qxd5 {[%emt 0:23:58]} 42. Qxf6 {[%emt 0:00:01]} Rxe3 {[%emt 0:00:33]} 43. Qg6+ {[%emt 0:00:45]} Kf8 {[%emt 0:00:07]} 44. Qxh6+ {[%emt 0:00:23]} Kf7 {[%emt 0:00:15]} 45. Qh7+ {[%emt 0:00:26]} Kf8 {[%emt 0:00:42]} 46. Qh8+ {[%emt 0:02:07]} Kf7 {[%emt 0:00:11]} 47. Kg1 {[%emt 0:01:51]} Bb7 {[%emt 0:06:24]} 48. Qh5+ {[%emt 0:00:32]} Kf8 {[%emt 0:00:17]} 49. Qh6+ {[%emt 0:00:21]} Kf7 {[%emt 0:00:56]} 50. Qxg5 {[%emt 0:00:09]} Qd4 {[%emt 0:00:54]} 51. Qg6+ {[%emt 0:01:45]} Kf8 {[%emt 0:00:37]} 52. Qh6+ {[%emt 0:00:08]} Kf7 {[%emt 0:00:11]} 53. Qh5+ {[%emt 0:01:23]} Kf8 {[%emt 0:00:06]} 54. Qh6+ {[%emt 0:09:14]} Kf7 {[%emt 0:00:14]} 55. Kh2 {[%emt 0:00:54]} Qe5+ {[%emt 0:02:40]} 56. Qf4 {[%emt 0:00:02]} Qxf4+ {[%emt 0:00:29]} 57. Rxf4 {[%emt 0:00:01]} Re2 {[%emt 0:00:03]} 58. Rg4 {[%emt 0:00:17]} Rb2 {[%emt 0:00:21]} 59. Bd3 {[%emt 0:00:06]} Rxa2 {[%emt 0:00:29]} 60. Bc4+ {[%emt 0:02:59]} Kf6 {[%emt 0:00:14]} 61. Be6 {[%emt 0:00:07]} Rc2 {[%emt 0:01:23]} 62. Rg6+ {[%emt 0:01:50]} Ke5 {[%emt 0:00:09]} 63. Kh3 {[%emt 0:00:52]} Be4 {[%emt 0:00:42]} 64. g4 {[%emt 0:00:13]} Kf4 {[%emt 0:00:18]} 65. Bd5 {[%emt 0:03:55]} Bxd5 66. Rd6 Bf3 {[%emt 0:00:48]} 0-1